bitfinex/quotes_ETHUSD_20250505
["timestamp","ask_amount","ask_price","bid_price","bid_amount"]
[1746465857785,5.50844553,1815.4,1815.2,0.55091717]
[1746465858091,5.50815718,1815.5,1815.2,6.9107083]
[1746465859755,11.80218094,1815.6,1815.2,6.9107083]
[1746465860091,6.29413485,1815.6,1815.2,6.9107083]
[1746465862895,5.5081613,1815.5,1815.2,6.9107083]
[1746465863794,5.50793485,1815.6,1815.2,12.4195364]
[1746465863971,5.50793485,1815.6,1815.2,6.85554527]
[1746465864270,5.50793485,1815.6,1815.2,6.91062982]
[1746465864485,5.91799456,1816.3,1815.6,1.3772]
[1746465864677,5.50672046,1816.0,1815.7,7.79691343]
[1746465865094,5.50672046,1816.0,1815.7,4.591]
[1746465865406,5.50619375,1816.2,1815.9,0.8272]
[1746465865773,5.9179823,1816.3,1815.9,6.33409402]
[1746465865973,5.50600758,1816.2,1815.9,6.33409402]
[1746465866195,5.50600758,1816.2,1815.9,0.8272]
[1746465866393,5.91805472,1816.3,1815.9,0.8272]
[1746465866566,5.91805472,1816.3,1815.9,6.33405203]
[1746465867283,5.91805472,1816.3,1815.9,6.33396023]
[1746465867481,11.42404637,1816.3,1815.9,6.33396023]
[1746465867705,5.50603326,1816.2,1815.9,6.33396023]
[1746465868211,5.50660792,1816.0,1815.9,0.8272]
[1746465868369,5.50634657,1816.1,1815.9,5.4162]
[1746465868727,5.50622056,1816.2,1815.9,5.4162]
[1746465869303,11.01250374,1816.2,1815.9,5.4162]
[1746465869507,5.50622056,1816.2,1815.9,5.4162]
[1746465869671,5.50632388,1816.1,1815.9,5.4162]
[1746465869868,5.50632465,1816.1,1815.9,5.4162]
[1746465870177,5.50641181,1816.1,1815.9,5.4162]
[1746465870381,5.50641181,1816.1,1815.8,4.588]
[1746465870702,5.50641181,1816.1,1815.8,6.34150441]
[1746465873669,5.50641181,1816.1,1815.8,11.84866587]
[1746465874213,5.50614284,1816.2,1815.9,0.807]
[1746465874372,5.50614284,1816.2,1815.9,6.31385688]
[1746465875114,5.50614284,1816.2,1815.9,0.807]
[1746465875602,5.50614284,1816.2,1815.9,1.47221928]
[1746465875603,5.50645932,1816.1,1815.9,1.47221928]
[1746465875770,5.50645932,1816.1,1815.9,0.66521928]
[1746465875975,5.50660792,1816.0,1815.9,0.66521928]
[1746465876170,5.50679671,1816.0,1815.8,6.34150441]
[1746465876374,5.50676455,1816.0,1815.8,6.34150441]
[1746465877318,5.50650488,1816.1,1815.8,6.34150441]
[1746465879112,5.50650488,1816.1,1815.8,11.84871344]
[1746465880193,5.50650488,1816.1,1815.8,6.34150441]
[1746465882021,11.01304612,1816.1,1815.8,6.34150441]
[1746465882219,5.50650488,1816.1,1815.8,6.34150441]
[1746465882580,5.91805052,1816.3,1815.9,8.71272853]
[1746465882919,5.50609627,1816.2,1815.9,11.42422796]
[1746465883286,5.50609627,1816.2,1816.0,0.7833]
[1746465883918,11.01238045,1816.2,1816.0,0.7833]
[1746465884392,5.50609627,1816.2,1816.0,0.7833]
[1746465884595,5.50630471,1816.1,1816.0,0.7833]
[1746465884802,5.50609627,1816.2,1816.0,0.7833]
[1746465885203,5.50630471,1816.1,1816.0,0.7833]
[1746465885506,5.50630471,1816.1,1815.8,10.93104019]
[1746465885820,5.50637269,1816.1,1815.8,13.76306584]
[1746465886005,5.50637269,1816.1,1815.8,13.70800011]
[1746465886586,5.50637269,1816.1,1815.8,8.20092565]
[1746465886925,5.50609627,1816.2,1815.8,13.76306252]
[1746465887121,12.22696611,1816.3,1815.9,5.50689597]
[1746465887298,11.42396611,1816.3,1815.9,6.33557416]
[1746465887493,5.91796459,1816.3,1816.0,5.50658228]
[1746465887699,5.91796459,1816.3,1816.1,0.7809]
[1746465887914,5.50612354,1816.2,1815.9,4.86379162]
[1746465888432,5.50612354,1816.2,1815.9,10.11724268]
[1746465888724,5.50612354,1816.2,1816.0,1.01172427]
[1746465889999,11.42390643,1816.3,1816.0,1.06678438]
[1746465890199,5.91797316,1816.3,1816.0,1.06678438]
[1746465890399,5.50608419,1816.2,1816.0,1.01172427]
[1746465890721,5.50608419,1816.2,1816.0,1.06678439]
[1746465891224,5.91797316,1816.3,1816.0,1.06678439]
[1746465891519,5.50613602,1816.2,1816.1,0.8292]
[1746465891723,5.91800935,1816.3,1816.1,0.8292]
[1746465891920,11.42394412,1816.3,1816.1,0.8292]
[1746465892137,5.50600154,1816.2,1816.1,0.8292]
[1746465892301,0.4121476,1816.3,1816.1,4.03511343]
[1746465892495,5.91785751,1816.3,1816.1,4.54530321]
[1746465893833,0.4121476,1816.3,1816.1,4.54530321]
[1746465894008,5.91790435,1816.3,1816.1,4.54530321]
[1746465894208,5.91790435,1816.3,1816.1,1.33938978]
[1746465894521,5.91790435,1816.3,1816.0,6.32023208]
[1746465895146,5.91790435,1816.3,1816.1,0.8022]
[1746465897043,11.42383627,1816.3,1816.1,0.8022]
[1746465897340,5.91790435,1816.3,1816.1,0.8022]
[1746465897543,5.50600154,1816.2,1816.0,6.26517533]
[1746465897846,5.9180202,1816.3,1816.0,6.32023494]
[1746465898018,0.4121476,1816.3,1816.1,6.13822816]
[1746465898223,0.4121476,1816.3,1816.2,0.8022]
[1746465900947,5.91784599,1816.3,1816.1,1.40182349]
[1746465901646,0.4121476,1816.3,1816.1,6.90793295]
[1746465901818,0.4121476,1816.3,1816.1,12.46909232]
[1746465902019,0.4121476,1816.3,1816.2,1.18827789]
[1746465904316,0.4121476,1816.3,1816.1,0.63202349]
[1746465904626,0.4121476,1816.3,1816.1,1.39962349]
[1746465904827,0.4121476,1816.3,1816.1,6.90589148]
[1746465905852,5.9178544,1816.3,1816.1,1.39962349]
[1746465906236,0.4121476,1816.3,1816.1,10.16669076]
[1746465906442,0.4121476,1816.3,1816.2,1.01666908]
[1746465907054,0.4121476,1816.3,1816.2,6.57772361]
[1746465907652,0.4121476,1816.3,1816.2,1.07172207]
[1746465908245,0.4121476,1816.3,1816.2,6.57772361]
[1746465908854,0.4121476,1816.3,1816.2,1.07172207]
[1746465910048,0.4121476,1816.3,1816.2,7.36332361]
[1746465910253,0.4121476,1816.3,1816.2,7.30827062]
[1746465910854,0.4121476,1816.3,1816.2,1.80226908]
[1746465911020,0.4121476,1816.3,1816.2,7.30827062]
[1746465912555,0.4121476,1816.3,1816.2,1.80226908]
[1746465912852,0.4121476,1816.3,1816.2,1.8573216]
[1746465913157,0.4121476,1816.3,1816.2,1.80226908]
[1746465914226,0.4121476,1816.3,1816.1,5.25345106]
[1746465914227,5.50600154,1816.2,1816.1,5.25345106]
[1746465915275,5.33697905,1816.3,1816.1,5.25345106]
[1746465915781,6.32381205,1816.4,1816.1,5.25345106]
[1746465916060,6.28697528,1816.6,1816.1,11.579374]
[1746465916258,5.50525582,1816.5,1816.2,1.1579374]
[1746465916444,5.50525582,1816.5,1816.3,4.586]
[1746465916647,6.28697528,1816.6,1816.3,4.586]
[1746465917563,6.27469291,1816.7,1816.3,10.86230636]
[1746465917863,5.50920233,1816.8,1816.4,8.71130871]
[1746465918061,5.50920233,1816.8,1816.5,6.43118027]
[1746465918062,0.005,1816.8,1816.5,6.43118027]
[1746465918239,0.005,1816.8,1816.5,6.37613676]
[1746465918649,0.005,1816.8,1816.6,4.01971343]
[1746465920261,0.005,1816.8,1816.7,4.586]
[1746465920667,0.005,1816.8,1816.7,16.74167668]
[1746465920825,0.005,1816.8,1816.7,18.31827278]
[1746465922963,0.005,1816.8,1816.7,21.31827278]
[1746465925426,0.005,1816.8,1816.7,16.73227278]
[1746465925731,0.005,1816.8,1816.7,6.88508663]
[1746465925732,5.50918317,1816.8,1816.7,6.88508663]
[1746465925931,5.50918317,1816.8,1816.7,5.25345106]
[1746465926845,0.005,1816.8,1816.7,5.25345106]
[1746465927661,0.005,1816.8,1816.7,10.75793721]
[1746465929458,0.005,1816.8,1816.7,5.25345106]
[1746465930358,0.005,1816.8,1816.7,5.50448615]
[1746465931590,0.7774,1816.8,1816.6,10.75801442]
[1746465932088,0.005,1816.8,1816.6,13.16340283]
[1746465934550,0.005,1816.8,1816.7,5.50448615]
[1746465935172,0.005,1816.8,1816.7,8.76543898]
[1746465936175,0.005,1816.8,1816.7,8.71039958]
[1746465936494,0.005,1816.8,1816.7,13.96385064]
[1746465936678,0.005,1816.8,1816.7,15.21916607]
[1746465937591,0.005,1816.8,1816.7,5.25345106]
[1746465942292,0.005,1816.8,1816.6,11.51271865]
[1746465944604,0.005,1816.8,1816.6,6.00815106]
[1746465944778,0.005,1816.8,1816.6,10.75815802]
[1746465946976,0.005,1816.8,1816.6,9.83645106]
[1746465947188,5.50936004,1816.8,1816.6,9.83645106]
[1746465947390,0.005,1816.8,1816.6,9.83645106]
[1746465948403,0.005,1816.8,1816.6,4.583]
[1746465950007,0.8056,1816.6,1816.5,4.583]
[1746465950383,6.31038916,1816.6,1816.5,4.583]
[1746465950585,5.50521627,1816.5,1816.3,5.25345106]
[1746465950785,6.31038916,1816.6,1816.3,9.83745106]
[1746465950997,6.31038916,1816.6,1816.3,15.34311768]
[1746465951215,0.8056,1816.6,1816.3,15.3431383]
[1746465951558,0.8056,1816.6,1816.4,5.50539255]
[1746465951810,6.31026694,1816.7,1816.4,5.50539255]
[1746465951981,5.50494155,1816.6,1816.3,12.31814432]
[1746465952183,5.50494155,1816.6,1816.3,9.83745106]
[1746465952789,6.31024318,1816.7,1816.3,15.34313708]
[1746465952976,6.31024318,1816.7,1816.3,17.8238118]
[1746465954288,6.31024318,1816.7,1816.3,12.57036074]
[1746465954479,11.81497779,1816.7,1816.3,12.57036074]
[1746465954705,6.31024318,1816.7,1816.3,12.57036074]
[1746465955119,5.50485941,1816.6,1816.3,12.57036074]
[1746465955299,5.50485941,1816.6,1816.3,4.584]
[1746465956378,6.31027289,1816.7,1816.3,4.584]
[1746465956710,5.50489362,1816.6,1816.3,10.08967533]
[1746465957313,6.31027289,1816.7,1816.3,10.08953434]
[1746465958202,6.31027289,1816.7,1816.3,15.59501976]
[1746465958402,6.31027289,1816.7,1816.3,10.08948542]
[1746465958614,6.31027289,1816.7,1816.4,5.5053468]
[1746465959619,6.31027289,1816.7,1816.3,15.59500921]
[1746465960519,6.31027289,1816.7,1816.4,5.50534634]
[1746465960915,6.31027289,1816.7,1816.3,10.08948542]
[1746465961415,6.31027289,1816.7,1816.3,15.59497161]
[1746465961581,6.31027289,1816.7,1816.3,10.08948542]
[1746465961782,5.50483894,1816.6,1816.3,10.08948542]
[1746465962199,5.50483894,1816.6,1816.3,4.584]
[1746465962574,5.50569839,1816.3,1816.2,5.25345106]
[1746465962780,5.50660792,1816.0,1815.9,3.70561305]
[1746465963717,6.291672,1816.2,1815.9,3.70561305]
[1746465963907,5.5063061,1816.1,1815.9,3.70561305]
[1746465964516,6.291672,1816.2,1815.9,3.70561305]
[1746465964719,6.291672,1816.2,1815.8,14.46612991]
[1746465964892,6.291672,1816.2,1815.8,17.31797538]
[1746465965091,6.291672,1816.2,1815.8,17.31792355]
[1746465965285,0.7856,1816.2,1815.8,17.31792355]
[1746465965487,6.29174312,1816.2,1815.8,17.31792164]
[1746465965723,5.50632053,1816.1,1815.8,17.31792164]
[1746465966085,6.29174312,1816.2,1815.8,17.31792164]
[1746465966618,11.79798097,1816.2,1815.8,17.31792164]
[1746465966818,6.29174312,1816.2,1815.8,17.31792164]
[1746465967219,6.29174312,1816.2,1815.8,22.82492004]
[1746465967422,6.29174312,1816.2,1815.8,17.31790798]
[1746465967932,6.29160967,1816.2,1815.9,6.31576183]
[1746465968222,6.29160967,1816.2,1815.9,4.0147718]
[1746465969125,5.50600967,1816.2,1815.9,4.0147718]
[1746465969424,5.50600967,1816.2,1815.9,9.52157642]
[1746465969822,5.50600967,1816.2,1815.9,4.0147718]
[1746465971326,5.50600967,1816.2,1815.9,9.52167072]
[1746465972023,5.50570318,1816.3,1815.9,9.52167072]
[1746465972191,5.506024,1816.2,1815.9,4.0147718]
[1746465972389,5.506024,1816.2,1815.9,0.80885837]
[1746465972693,5.506024,1816.2,1815.8,10.76044943]
[1746465972694,0.779,1816.1,1815.8,10.76044943]
[1746465972889,6.28547442,1816.1,1815.7,5.3389]
[1746465973140,6.28547442,1816.1,1815.7,10.8462598]
[1746465973596,6.28547442,1816.1,1815.7,16.3536196]
[1746465973924,6.28547442,1816.1,1815.8,5.50719348]
[1746465974494,5.507117,1815.9,1815.7,4.583]
[1746465974919,5.50670161,1816.0,1815.7,4.583]
[1746465975227,5.50670161,1816.0,1815.7,10.0904983]
[1746465975730,6.2854168,1816.1,1815.7,14.06491173]
[1746465976228,5.50663399,1816.0,1815.7,14.06491173]
[1746465976860,11.79198181,1816.1,1815.7,14.06491173]
[1746465977029,5.50663297,1816.0,1815.7,14.06491173]
[1746465977565,5.50663297,1816.0,1815.7,8.55741343]
[1746465977874,5.50663297,1816.0,1815.7,14.06487692]
[1746465978421,5.50707409,1815.9,1815.7,4.583]
[1746465978624,5.50721445,1815.8,1815.7,4.583]
[1746465978824,5.50721445,1815.8,1815.5,13.83556449]
[1746465979556,6.31490329,1815.9,1815.5,19.34353074]
[1746465979853,6.31490329,1815.9,1815.6,5.50781658]
[1746465980056,6.31490329,1815.9,1815.5,19.34348405]
[1746465980264,5.50749825,1815.8,1815.5,13.83556449]
[1746465980553,5.50761103,1815.7,1815.5,9.83845106]
[1746465980756,5.50761103,1815.7,1815.4,4.585]
[1746465981535,5.50737606,1815.8,1815.5,8.71402356]
[1746465981749,5.50737606,1815.8,1815.5,3.20591343]
[1746465984564,11.01485069,1815.8,1815.5,3.20591343]
[1746465985144,5.50737606,1815.8,1815.5,3.20591343]
[1746465985344,5.50737606,1815.8,1815.5,8.71403657]
[1746465985569,5.50737606,1815.8,1815.5,10.73607104]
[1746465985870,5.50737606,1815.8,1815.5,5.2279479]
[1746465986769,11.01486884,1815.8,1815.5,5.2279479]
[1746465987368,5.50737606,1815.8,1815.5,5.2279479]
[1746465987548,11.01484889,1815.8,1815.5,5.2279479]
[1746465987747,5.50737606,1815.8,1815.5,5.2279479]
[1746465988467,5.5075777,1815.7,1815.5,5.2279479]
[1746465988766,5.50760224,1815.7,1815.5,5.2279479]
[1746465989072,5.50760224,1815.7,1815.5,3.20591343]
[1746465989374,5.50743365,1815.8,1815.5,3.20591343]
[1746465990739,11.01494823,1815.8,1815.5,3.20591343]
[1746465990947,11.01489142,1815.8,1815.5,3.20591343]
[1746465991748,5.50753791,1815.7,1815.4,10.09333957]
[1746465991949,5.50753791,1815.7,1815.4,12.58259166]
[1746465993773,5.50743365,1815.8,1815.5,0.7848]
[1746465994079,11.01490374,1815.8,1815.5,0.7848]
[1746465994263,11.79200374,1815.8,1815.5,0.7848]
[1746465995252,6.28453365,1815.8,1815.4,13.39378984]
[1746465995451,5.50757254,1815.7,1815.4,13.39378984]
[1746465995649,5.50757254,1815.7,1815.4,7.88555209]
[1746465996175,5.50795141,1815.6,1815.4,7.88555209]
[1746465996582,5.50795141,1815.6,1815.3,8.58861343]
[1746465996878,5.50793877,1815.6,1815.3,8.58861343]
[1746465997456,5.50793877,1815.6,1815.3,14.09733256]
[1746465998058,5.50793877,1815.6,1815.3,8.58861343]
[1746465998787,5.5082305,1815.5,1815.3,8.58861343]
[1746465999084,5.5082305,1815.5,1815.3,5.3827]
[1746465999549,5.50842789,1815.4,1815.3,5.3827]
[1746465999750,5.50842789,1815.4,1815.2,4.585]
[1746466000377,5.5082305,1815.5,1815.2,4.585]
[1746466001674,11.01658361,1815.5,1815.2,4.585]
[1746466001882,5.5082305,1815.5,1815.2,4.585]
[1746466002384,5.5085485,1815.4,1815.2,4.585]
[1746466003084,5.5085485,1815.4,1815.1,8.56651343]
[1746466003451,5.50831262,1815.5,1815.1,16.55956571]
[1746466003781,11.01670366,1815.5,1815.1,16.55954943]
[1746466003987,5.50846298,1815.4,1815.1,16.55954943]
[1746466004289,5.50832988,1815.5,1815.1,16.55954943]
[1746466005090,5.50847626,1815.4,1815.1,16.55954943]
[1746466005252,6.25835661,1815.6,1815.2,6.68577352]
[1746466005458,5.50795661,1815.6,1815.3,3.20591343]
[1746466006555,5.5082195,1815.5,1815.3,3.20591343]
[1746466006761,11.01658591,1815.5,1815.3,3.20591343]
[1746466006961,5.5082195,1815.5,1815.3,3.20591343]
[1746466009194,5.5079662,1815.6,1815.3,3.64418696]
[1746466009697,5.50812821,1815.5,1815.3,3.64418696]
[1746466010776,5.5079662,1815.6,1815.3,3.64418696]
[1746466010973,0.7971,1815.9,1815.5,3.20591343]
[1746466011311,5.50721445,1815.8,1815.5,3.20591343]
[1746466011619,5.5078211,1815.6,1815.5,3.20591343]
[1746466012515,5.5078211,1815.6,1815.4,0.7555]
[1746466012681,5.5078211,1815.6,1815.4,1.74632758]
[1746466014686,5.50755464,1815.7,1815.4,1.74632758]
[1746466014874,5.50755464,1815.7,1815.4,7.25462258]
[1746466015620,5.50735639,1815.8,1815.5,4.00791343]
[1746466015782,5.50705511,1815.9,1815.5,4.00791343]
[1746466015783,5.50702239,1815.9,1815.6,5.5077025]
[1746466016724,5.50686308,1816.0,1815.7,5.50741871]
[1746466017023,6.29766579,1816.1,1815.7,9.51529766]
[1746466017181,6.29766579,1816.1,1815.7,15.02264429]
[1746466017387,6.29766579,1816.1,1815.7,19.60764429]
[1746466017617,6.29766579,1816.1,1815.7,14.10026006]
[1746466017778,6.29766579,1816.1,1815.7,15.2770819]
[1746466018170,6.29766579,1816.1,1815.7,20.78439367]
[1746466018998,5.50646579,1816.1,1815.7,20.78439367]
[1746466019203,5.50646579,1816.1,1815.8,5.50716663]
[1746466019518,6.29736176,1816.2,1815.8,11.01416451]
[1746466019664,6.29736176,1816.2,1815.8,5.50699788]
[1746466020374,5.50631348,1816.1,1815.8,6.93609899]
[1746466020998,6.29736176,1816.2,1815.8,1.42910111]
[1746466021216,5.50639493,1816.1,1815.8,6.93622054]
[1746466022474,6.29736176,1816.2,1815.8,6.93622054]
[1746466023176,5.50630938,1816.1,1815.8,6.93622054]
[1746466023379,11.8036083,1816.2,1815.8,6.93622054]
[1746466024319,5.50634063,1816.1,1815.8,6.93622054]
[1746466024481,5.50634063,1816.1,1815.7,20.78437019]
[1746466024682,5.50634063,1816.1,1815.7,15.27704037]
[1746466024987,5.50634063,1816.1,1815.7,20.78434491]
[1746466025190,6.29736176,1816.2,1815.8,5.50719525]
[1746466025625,11.80358493,1816.2,1815.8,5.50719525]
[1746466025781,6.29736176,1816.2,1815.8,5.50719525]
[1746466026402,6.29736176,1816.2,1815.8,7.58561876]
[1746466026717,6.30268954,1816.4,1815.9,0.7866]
[1746466026947,6.30268954,1816.4,1816.0,5.50638344]
[1746466027170,5.50471744,1816.7,1816.0,5.50638344]
[1746466027171,0.8134,1816.7,1816.2,0.8223]
[1746466027322,5.50498996,1816.6,1816.2,11.83397884]
[1746466027516,5.50498996,1816.6,1816.2,17.92090344]
[1746466028012,5.50498996,1816.6,1816.3,5.50566034]
[1746466028215,5.50458595,1816.7,1816.3,8.71157377]
[1746466028732,5.50458595,1816.7,1816.4,0.7561]
[1746466028914,5.50458595,1816.7,1816.4,1.70286738]
[1746466029114,5.50458595,1816.7,1816.4,7.20826223]
[1746466029618,5.50933401,1816.8,1816.4,7.20803948]
[1746466029818,5.50936318,1816.8,1816.4,7.20803948]
[1746466030345,5.50448974,1816.7,1816.4,1.70286738]
[1746466031138,11.01382347,1816.8,1816.4,7.20812846]
[1746466031347,5.50936318,1816.8,1816.5,0.72081285]
[1746466031848,5.5045734,1816.7,1816.5,0.72081285]
[1746466032049,0.005,1816.8,1816.5,0.72081285]
[1746466032050,5.50938894,1816.8,1816.5,0.72081285]
[1746466032441,0.005,1816.8,1816.5,0.72081285]
[1746466032640,0.005,1816.8,1816.7,0.7782]
[1746466032947,0.005,1816.8,1816.7,6.81870615]
[1746466034357,0.005,1816.8,1816.7,10.02461958]
[1746466034854,0.005,1816.8,1816.7,10.07965873]
[1746466035258,0.005,1816.8,1816.7,10.02461958]
[1746466036260,0.005,1816.8,1816.7,10.07965872]
[1746466041158,0.005,1816.8,1816.7,10.06245749]
[1746466041769,0.005,1816.8,1816.7,10.00741958]
[1746466042179,0.005,1816.8,1816.7,10.55741958]
[1746466042367,0.005,1816.8,1816.7,10.61245537]
[1746466042982,0.005,1816.8,1816.7,10.55741958]
[1746466044344,0.005,1816.8,1816.7,15.81087064]
[1746466048686,0.005,1816.8,1816.7,9.75638449]
[1746466049187,0.005,1816.8,1816.7,15.26087064]
[1746466055097,0.005,1816.8,1816.7,15.81087064]
[1746466056099,0.005,1816.8,1816.7,10.55741958]
[1746466056302,0.005,1816.8,1816.7,18.81087064]
[1746466060986,0.005,1816.8,1816.7,23.38987064]
[1746466081136,0.005,1816.8,1816.7,22.62887064]
[1746466082949,0.005,1816.8,1816.7,29.28592653]
[1746466083559,0.005,1816.8,1816.7,30.09152653]
[1746466087767,0.005,1816.8,1816.7,29.28592653]
[1746466088063,0.005,1816.8,1816.7,30.03722653]
[1746466089061,0.06302521,1817.0,1816.9,5.50388023]
[1746466089267,0.06302521,1817.0,1816.9,18.41903741]
[1746466089762,0.37304741,1817.0,1816.9,18.41903741]
[1746466093188,1.17594741,1817.0,1816.9,21.54024472]
[1746466094086,1.17594741,1817.0,1816.9,22.09024472]
[1746466094239,0.37304741,1817.0,1816.9,22.09024472]
[1746466095338,0.37322381,1817.0,1816.9,22.09024472]
[1746466101238,0.37322381,1817.0,1816.9,22.84394472]
[1746466101442,0.21428571,1817.5,1817.4,9.80606601]
[1746466101643,0.36554622,1818.1,1818.0,5.50055005]
[1746466101879,0.36554622,1818.1,1818.0,8.70646348]
[1746466102043,0.36554622,1818.1,1818.0,9.25646348]
[1746466102462,0.36554622,1818.1,1818.0,9.67196253]
[1746466103184,0.36554622,1818.1,1818.0,12.67196253]
[1746466103384,0.36554622,1818.1,1818.0,14.37277247]
[1746466104771,0.51680672,1818.6,1818.5,6.04903766]
[1746466104948,0.51680672,1818.6,1818.5,17.69742451]
[1746466105149,0.51680672,1818.6,1818.5,17.64245109]
[1746466105357,0.51680672,1818.6,1818.5,16.83095109]
[1746466105671,0.51680672,1818.6,1818.5,17.55176394]
[1746466106651,6.77403051,1818.6,1818.3,4.576]
[1746466106999,5.49907743,1818.5,1818.3,9.82945106]
[1746466107184,5.49934007,1818.4,1818.3,9.82945106]
[1746466107357,5.49934007,1818.4,1818.3,5.25345106]
[1746466107739,5.49934007,1818.4,1818.1,4.575]
[1746466107740,5.49966557,1818.3,1818.1,4.575]
[1746466107986,6.12637614,1818.3,1818.1,4.575]
[1746466108748,5.50025901,1818.1,1817.9,8.95906411]
[1746466109176,6.28019298,1818.2,1817.9,5.25345106]
[1746466109384,5.50049805,1818.1,1817.9,5.25345106]
[1746466109595,6.27905005,1818.0,1817.9,5.25345106]
[1746466110483,0.7785,1818.0,1817.9,5.25345106]
[1746466111497,6.27905005,1818.0,1817.9,5.25345106]
[1746466111793,6.27905005,1818.0,1817.8,4.575]
[1746466111794,5.50085263,1817.9,1817.8,4.575]
[1746466111990,7.45716486,1818.0,1817.8,4.575]
[1746466112284,7.45716486,1818.0,1817.8,3.20591343]
[1746466112285,0.7785,1818.0,1817.8,3.20591343]
[1746466112589,0.7785,1818.0,1817.8,8.70686862]
[1746466113910,5.50007483,1818.2,1818.1,5.50024751]
[1746466113911,0.7687,1818.2,1818.1,5.50024751]
[1746466114111,0.7687,1818.4,1818.1,9.3111541]
[1746466114254,0.7687,1818.4,1818.1,9.25604131]
[1746466114453,0.7687,1818.4,1818.1,6.05012788]
[1746466114654,6.2682025,1818.4,1818.1,3.75591343]
[1746466114865,1.39552025,1818.4,1818.0,5.25345106]
[1746466115083,6.26814739,1818.4,1818.0,10.80879291]
[1746466115285,0.7687,1818.4,1818.1,5.5000893]
[1746466115460,0.7687,1818.4,1818.1,3.20591343]
[1746466115665,6.26815502,1818.4,1818.1,3.20591343]
[1746466115872,6.26815502,1818.4,1818.0,10.75385321]
[1746466116384,5.49984113,1818.3,1818.0,5.25345106]
[1746466117057,7.44488741,1818.4,1818.0,10.80878072]
[1746466117259,7.44488741,1818.4,1818.0,16.30910963]
[1746466117458,7.44488741,1818.4,1818.0,16.25410888]
[1746466117677,7.44488741,1818.4,1818.0,10.75377997]
[1746466117972,1.94543239,1818.4,1818.1,5.50023991]
[1746466118182,0.7687,1818.4,1818.1,5.50023991]
[1746466118460,5.49965522,1818.3,1818.0,5.25345106]
[1746466119756,5.50005467,1818.2,1818.0,5.25345106]
[1746466120287,5.49965522,1818.3,1818.0,5.25345106]
[1746466120487,6.26819543,1818.4,1818.0,10.75388288]
[1746466120812,5.49993105,1818.3,1818.0,5.25345106]
[1746466120989,5.50010618,1818.2,1818.0,5.25345106]
[1746466121773,5.50055005,1818.0,1817.9,4.575]
[1746466122891,6.26104751,1818.1,1817.9,4.575]
[1746466123059,5.50056055,1818.0,1817.7,13.96063524]
[1746466123392,5.50056055,1818.0,1817.7,18.56963524]
[1746466124191,11.00137831,1818.0,1817.7,13.06836449]
[1746466124359,5.50056055,1818.0,1817.7,13.06836449]
[1746466124558,11.00137661,1818.0,1817.7,13.06836449]
[1746466124891,11.0015042,1818.0,1817.7,9.86245106]
[1746466125391,1.17623042,1818.0,1817.5,5.25345106]
[1746466125583,5.50172653,1817.7,1817.4,5.25345106]
[1746466125784,5.50171174,1817.7,1817.4,5.25345106]
[1746466126561,5.50171174,1817.7,1817.3,10.1114767]
[1746466126766,11.00342786,1817.7,1817.3,10.16649599]
[1746466127178,5.50171174,1817.7,1817.3,15.66897627]
[1746466127400,5.50171174,1817.7,1817.3,10.1114767]
[1746466127605,11.00345036,1817.7,1817.3,10.16649599]
[1746466127902,5.50187246,1817.6,1817.3,4.66401929]
[1746466128078,6.25397246,1817.6,1817.3,9.91747035]
[1746466128274,5.50220407,1817.5,1817.3,9.86245106]
[1746466129514,11.75602619,1817.6,1817.3,9.86245106]
[1746466129714,5.50208225,1817.5,1817.3,9.86245106]
[1746466130007,6.25401811,1817.6,1817.3,9.86245106]
[1746466130708,5.50207507,1817.5,1817.3,9.86245106]
[1746466131312,6.25396605,1817.6,1817.3,4.609]
[1746466131609,6.25396605,1817.6,1817.3,10.11160544]
[1746466131812,6.25396605,1817.6,1817.3,4.609]
[1746466132421,6.30945475,1817.8,1817.5,5.50195752]
[1746466132908,0.8082,1817.8,1817.5,11.00385103]
[1746466133107,0.8082,1817.8,1817.5,5.50189351]
[1746466133306,6.30945178,1817.8,1817.4,9.25809367]
[1746466133807,6.30945178,1817.8,1817.4,0.55]
[1746466133808,5.50157218,1817.7,1817.4,0.55]
[1746466133977,5.50181914,1817.6,1817.3,10.1114726]
[1746466134173,5.50181914,1817.6,1817.3,10.1664934]
[1746466134373,5.50178311,1817.6,1817.3,4.6640208]
[1746466134573,6.68268171,1817.7,1817.3,4.6640208]
[1746466134574,6.68268171,1817.7,1817.3,10.11156477]
[1746466135077,5.50188668,1817.6,1817.3,4.609]
[1746466135499,5.50188668,1817.6,1817.3,10.11166706]
[1746466136510,5.50208023,1817.5,1817.3,4.609]
[1746466136804,0.7781,1817.4,1817.3,4.609]
[1746466138000,0.7309,1817.4,1817.3,4.609]
[1746466138911,6.23326601,1817.4,1817.3,4.609]
[1746466139414,0.7309,1817.4,1817.3,4.609]
[1746466139625,0.7309,1817.4,1817.2,5.50274529]
[1746466139823,5.501888,1817.6,1817.2,7.12867506]
[1746466140120,5.50163975,1817.7,1817.3,5.50259981]
[1746466140325,5.50123722,1817.8,1817.4,5.50232175]
[1746466140829,5.50146294,1817.7,1817.4,5.50232175]
[1746466141004,6.29816294,1817.7,1817.4,5.50232175]
[1746466141409,0.7967,1817.7,1817.4,5.50232175]
[1746466141816,6.29817829,1817.7,1817.4,5.50232175]
[1746466142135,0.7967,1817.7,1817.4,5.50232175]
[1746466142437,6.29820585,1817.7,1817.4,5.50232175]
[1746466142730,5.5019064,1817.6,1817.3,4.61]
[1746466143114,6.29820585,1817.7,1817.3,10.11264321]
[1746466143314,5.50176142,1817.6,1817.3,10.11264321]
[1746466144017,6.2982925,1817.7,1817.3,10.11248185]
[1746466144540,5.50177869,1817.6,1817.3,4.61]
[1746466144943,5.50177869,1817.6,1817.3,10.1126661]
[1746466145538,5.50177869,1817.6,1817.3,4.61]
[1746466145705,5.50217723,1817.5,1817.3,4.61]
[1746466146620,5.50177869,1817.6,1817.3,4.61]
[1746466146821,11.00377971,1817.6,1817.3,4.61]
[1746466147033,5.50177869,1817.6,1817.3,4.61]
[1746466147237,11.00376495,1817.6,1817.3,4.61]
[1746466147443,5.50177869,1817.6,1817.3,4.61]
[1746466148250,11.00377545,1817.6,1817.3,4.61]
[1746466149648,5.50224515,1817.5,1817.3,4.61]
[1746466150053,5.50236601,1817.4,1817.3,4.61]
[1746466150550,6.27926601,1817.4,1817.3,4.61]
[1746466151258,6.27926601,1817.4,1817.2,5.25345106]
[1746466151430,5.50266879,1817.3,1817.2,5.25345106]
[1746466151630,5.50266879,1817.3,1817.1,4.628]
[1746466152453,5.5029716,1817.2,1817.1,4.628]
[1746466152859,5.5029716,1817.2,1816.9,5.25345106]
[1746466155223,11.00622809,1817.2,1816.9,5.25345106]
[1746466155729,5.50330635,1817.1,1816.9,5.25345106]